fUSD/lending_fUSD_20240125
["ID","MTS","AMOUNT","RATE_DAILY","PERIOD"]
[312782854,1706216092339,-500.0,0.00054794,120]
[312782855,1706216092362,-299.71368048,0.00054794,120]
[312782856,1706216092387,-500.0,0.00054794,120]
[312782857,1706216092409,-500.0,0.00054794,120]
[312782858,1706216092433,-500.0,0.00054794,120]
[312782859,1706216092458,-500.0,0.00054794,120]
[312782860,1706216092481,-500.0,0.00054794,120]
[312782861,1706216092508,-600.0,0.00054794,120]
[312782862,1706216092532,-166.65,0.00054794,120]
[312782863,1706216092555,-500.0,0.00054794,120]
[312782864,1706216092578,-500.0,0.00054794,120]
[312782865,1706216092600,-500.0,0.00054794,120]
[312782866,1706216092622,-287.49070642,0.00054794,120]
[312782867,1706216092644,-500.0,0.00054794,120]
[312782868,1706216092670,-500.0,0.00054794,120]
[312782869,1706216092691,-500.0,0.00054794,120]
[312782870,1706216092713,-500.0,0.00054794,120]
[312782871,1706216092735,-500.0,0.00054794,120]
[312782872,1706216092757,-500.0,0.00054794,120]
[312782873,1706216092779,-500.0,0.00054794,120]
[312782874,1706216092802,-500.0,0.00054794,120]
[312782875,1706216092824,-500.0,0.00054794,120]
[312782876,1706216092846,-500.0,0.00054794,120]
[312782877,1706216092868,-500.0,0.00054794,120]
[312782878,1706216092890,-179.30610024,0.00054794,120]
[312782879,1706216092915,-500.0,0.00054794,120]
[312782880,1706216092936,-504.97,0.00054794,120]
[312782881,1706216092959,-500.0,0.00054794,120]
[312782882,1706216092983,-500.0,0.00054794,120]
[312782883,1706216093004,-500.0,0.00054794,120]
[312782884,1706216093026,-500.0,0.00054794,120]
[312782885,1706216093049,-477.05953202,0.00054794,120]
[312782886,1706216093073,-500.0,0.00054794,120]
[312782887,1706216093094,-500.0,0.00054794,120]
[312782888,1706216093120,-500.0,0.00054794,120]
[312782889,1706216093147,-500.0,0.00054794,120]
[312782890,1706216093171,-500.0,0.00054794,120]
[312782891,1706216093193,-500.0,0.00054794,120]
[312782892,1706216093214,-500.0,0.00054794,120]
[312782893,1706216093236,-500.0,0.00054794,120]
[312782894,1706216093257,-500.0,0.00054794,120]
[312782895,1706216093279,-865.45,0.00054794,120]
[312782896,1706216093302,-500.0,0.00054794,120]
[312782897,1706216093324,-500.0,0.00054794,120]
[312782898,1706216093346,-500.0,0.00054794,120]
[312782899,1706216093369,-580.86,0.00054794,120]
[312782900,1706216093392,-500.0,0.00054794,120]
[312782901,1706216093414,-500.0,0.00054794,120]
[312782902,1706216093435,-150.0,0.00054794,120]
[312782903,1706216093457,-500.0,0.00054794,120]
[312782904,1706216093479,-500.0,0.00054794,120]
[312782905,1706216093501,-500.0,0.00054794,120]
[312782906,1706216093524,-500.0,0.00054794,120]
[312782907,1706216093547,-500.0,0.00054794,120]
[312782908,1706216093568,-500.0,0.00054794,120]
[312782909,1706216093590,-500.0,0.00054794,120]
[312782910,1706216093612,-500.0,0.00054794,120]
[312782911,1706216093639,-500.0,0.00054794,120]
[312782912,1706216093664,-500.0,0.00054794,120]
[312782913,1706216093687,-500.0,0.00054794,120]
[312782914,1706216093709,-500.0,0.00054794,120]
[312782915,1706216093731,-197.36,0.00054794,120]
[312782916,1706216093751,-500.0,0.00054794,120]
[312782917,1706216093882,-500.0,0.00054795,120]
[312782918,1706216093918,-162.22703681,0.000548,30]
[312782919,1706216093942,-3000.0,0.000548,30]
[312782920,1706216093967,-50000.0,0.00055,45]
[312782921,1706216093991,-46049.0,0.00055,90]
[312782922,1706216094012,-1000.0,0.00055,24]
[312782923,1706216094034,-24252.0,0.0005508,30]
[312782924,1706216094056,-824.0,0.0005508,30]
[312782925,1706216094078,-500.0,0.00055099,120]
[312782926,1706216094099,-223.654,0.0005534,30]
[312782927,1706216094121,-500.0,0.00055342,120]
[312782928,1706216094143,-500.0,0.00055342,120]
[312782929,1706216094165,-500.0,0.00055342,120]
[312782930,1706216094187,-605.3375444,0.00055342,120]
[312782931,1706216094208,-500.0,0.00055342,120]
[312782932,1706216094231,-500.0,0.00055342,120]
[312782933,1706216094254,-500.0,0.00055342,120]
[312782934,1706216094276,-633.81548056,0.00055342,120]
[312782935,1706216094299,-384.12215285,0.00055342,120]
[312782936,1706216094321,-500.0,0.00055342,120]
[312782937,1706216094344,-500.0,0.00055342,120]
[312782938,1706216094366,-515.34,0.00055342,120]
[312782939,1706216094388,-500.0,0.00055342,120]
[312782940,1706216094409,-500.0,0.00055342,120]
[312782941,1706216094432,-893.31,0.00055342,120]
[312782942,1706216094454,-500.0,0.00055342,120]
[312782943,1706216094476,-500.0,0.00055342,120]
[312782944,1706216094497,-500.0,0.00055342,120]
[312782945,1706216094519,-500.0,0.00055342,20]
[312782946,1706216094541,-500.0,0.00055342,120]
[312782947,1706216094562,-500.0,0.00055342,120]
[312782948,1706216094583,-500.0,0.00055342,120]
[312782949,1706216094605,-500.0,0.00055342,120]
[312782950,1706216094627,-757.69,0.00055342,120]
[312782951,1706216094648,-500.0,0.00055342,120]
[312782952,1706216094669,-500.0,0.00055342,120]
[312782953,1706216094690,-500.0,0.00055342,120]
[312782954,1706216094711,-615.73,0.00055342,120]
[312782955,1706216094732,-500.0,0.00055342,120]
[312782956,1706216094754,-500.0,0.00055342,120]
[312782957,1706216094777,-500.0,0.00055342,120]
[312782958,1706216094799,-500.0,0.00055342,120]
[312782959,1706216094822,-500.0,0.00055342,120]
[312782960,1706216094844,-500.0,0.00055342,120]
[312782961,1706216094866,-500.0,0.00055342,120]
[312782962,1706216094889,-500.0,0.00055342,120]
[312782963,1706216094915,-500.0,0.00055342,120]
[312782964,1706216094938,-500.0,0.00055342,120]
[312782965,1706216094959,-500.0,0.00055342,120]
[312782966,1706216094983,-500.0,0.00055342,120]
[312782967,1706216095004,-600.0,0.00055342,120]
[312782968,1706216095026,-500.0,0.00055342,120]
[312782969,1706216095049,-500.0,0.00055342,120]
[312782970,1706216095071,-500.0,0.00055342,120]
[312782971,1706216095092,-500.0,0.00055342,120]
[312782972,1706216095114,-500.0,0.00055342,120]
[312782973,1706216095135,-500.0,0.00055342,120]
[312782974,1706216095156,-500.0,0.00055342,120]
[312782975,1706216095178,-500.0,0.00055342,120]
[312782976,1706216095199,-500.0,0.00055342,120]
[312782977,1706216095221,-500.0,0.00055342,120]
[312782978,1706216095242,-500.0,0.00055342,120]
[312782979,1706216095263,-500.0,0.00055342,120]
[312782980,1706216095286,-500.0,0.00055342,120]
[312782981,1706216095309,-500.0,0.00055342,120]
[312782982,1706216095331,-504.97,0.00055342,120]
[312782983,1706216095353,-500.0,0.00055342,120]
[312782984,1706216095376,-500.0,0.00055342,120]
[312782985,1706216095398,-500.0,0.00055342,120]
[312782986,1706216095420,-500.0,0.00055342,120]
[312782987,1706216095443,-338.72,0.00055342,120]
[312782988,1706216095466,-500.0,0.00055342,120]
[312782989,1706216095488,-183.38341046,0.00055342,120]
[312782990,1706216095511,-500.0,0.00055342,120]
[312782991,1706216095533,-500.0,0.00055342,120]
[312782992,1706216095556,-500.0,0.00055342,120]
[312782993,1706216095578,-500.0,0.00055342,120]
[312782994,1706216095600,-500.0,0.00055342,120]
[312782995,1706216095626,-865.45,0.00055342,120]
[312782996,1706216095650,-500.0,0.00055342,120]
[312782997,1706216095674,-500.0,0.00055342,120]
[312782998,1706216095696,-150.0,0.00055342,120]
[312782999,1706216095719,-500.0,0.00055342,120]
[312783000,1706216095742,-500.0,0.00055342,120]
[312783001,1706216095766,-500.0,0.00055342,120]
[312783002,1706216095791,-500.0,0.00055342,120]
[312783003,1706216095812,-500.0,0.00055342,120]
[312783004,1706216095835,-500.0,0.00055342,120]
[312783005,1706216095856,-500.0,0.00055342,120]
[312783006,1706216095879,-500.0,0.00055342,120]
[312783007,1706216095903,-500.0,0.00055342,120]
[312783008,1706216095926,-500.0,0.00055342,120]
[312783009,1706216095949,-204.0,0.00055352,50]
[312783010,1706216095972,-621.86867691,0.00055376,46]
[312783011,1706216095995,-500.0,0.00055403,120]
[312783012,1706216096018,-500.0,0.00055429,120]
[312783013,1706216096040,-190.14862974,0.000556,90]
[312783014,1706216096063,-24252.0,0.0005562,30]
[312783015,1706216096087,-824.0,0.0005562,30]
[312783016,1706216096110,-500.0,0.00055708,120]
[312783017,1706216096132,-157.09567325,0.00055783,120]
[312783018,1706216096155,-152.0,0.000558,120]
[312783019,1706216096177,-89318.36994553,0.00055888,120]
[312783020,1706216096199,-291.90243432,0.0005589,120]
[312783021,1706216096331,-500.0,0.0005589,120]
[312783022,1706216096354,-500.0,0.0005589,120]
[312783023,1706216096375,-500.0,0.0005589,120]
[312783024,1706216096399,-595.00294305,0.0005589,120]
[312783025,1706216096422,-243.83406197,0.0005589,120]
[312783026,1706216096445,-500.0,0.0005589,120]
[312783027,1706216096468,-500.0,0.0005589,120]
[312783028,1706216096490,-515.34,0.0005589,120]
[312783029,1706216096512,-500.0,0.0005589,120]
[312783030,1706216096535,-500.0,0.0005589,120]
[312783031,1706216096557,-893.31,0.0005589,120]
[312783032,1706216096579,-500.0,0.0005589,120]
[312783033,1706216096600,-500.0,0.0005589,120]
[312783034,1706216096622,-500.0,0.0005589,120]
[312783035,1706216096643,-500.0,0.0005589,20]
[312783036,1706216096664,-500.0,0.0005589,120]
[312783037,1706216096686,-545.01712551,0.0005589,120]
[312783038,1706216096707,-500.0,0.0005589,120]
[312783039,1706216096729,-500.0,0.0005589,120]
[312783040,1706216096751,-757.69,0.0005589,120]
[312783041,1706216096772,-500.0,0.0005589,120]
[312783042,1706216096794,-500.0,0.0005589,120]
[312783043,1706216096815,-615.73,0.0005589,120]
[312783044,1706216096837,-500.0,0.0005589,120]
[312783045,1706216096861,-500.0,0.0005589,120]
[312783046,1706216096885,-500.0,0.0005589,120]
[312783047,1706216096911,-500.0,0.0005589,120]
[312783048,1706216096934,-500.0,0.0005589,120]
[312783049,1706216096956,-500.0,0.0005589,120]
[312783050,1706216096979,-500.0,0.0005589,120]
[312783051,1706216097002,-500.0,0.0005589,120]
[312783052,1706216097026,-500.0,0.0005589,120]
[312783053,1706216097049,-500.0,0.0005589,120]
[312783054,1706216097072,-500.0,0.0005589,120]
[312783055,1706216097094,-500.0,0.0005589,120]
[312783056,1706216097115,-600.0,0.0005589,120]
[312783057,1706216097137,-500.0,0.0005589,120]
[312783058,1706216097159,-500.0,0.0005589,120]
[312783059,1706216097182,-500.0,0.0005589,120]
[312783060,1706216097203,-500.0,0.0005589,120]
[312783061,1706216097225,-500.0,0.0005589,120]
[312783062,1706216097247,-500.0,0.0005589,120]
[312783063,1706216097269,-500.0,0.0005589,120]
[312783064,1706216097291,-500.0,0.0005589,120]
[312783065,1706216097315,-500.0,0.0005589,120]
[312783066,1706216097339,-500.0,0.0005589,120]
[312783067,1706216097361,-462.41854678,0.0005589,120]
[312783068,1706216097383,-500.0,0.0005589,120]
[312783069,1706216097405,-504.97,0.0005589,120]
[312783070,1706216097428,-500.0,0.0005589,120]
[312783071,1706216097449,-500.0,0.0005589,120]
[312783072,1706216097471,-495.76897955,0.0005589,120]
[312783073,1706216097492,-500.0,0.0005589,120]
[312783074,1706216097514,-279.97496593,0.0005589,120]
[312783075,1706216097536,-500.0,0.0005589,120]
[312783076,1706216097557,-500.0,0.0005589,120]
[312783077,1706216097579,-500.0,0.0005589,120]
[312783078,1706216097603,-500.0,0.0005589,120]
[312783079,1706216097627,-500.0,0.0005589,120]
[312783080,1706216097652,-865.45,0.0005589,120]
[312783081,1706216097677,-500.0,0.0005589,120]
[312783082,1706216097699,-308.8339596,0.0005589,120]
[312783083,1706216097720,-150.0,0.0005589,120]
[312783084,1706216097743,-500.0,0.0005589,120]
[312783085,1706216097766,-500.0,0.0005589,120]
[312783086,1706216097788,-500.0,0.0005589,120]
[312783087,1706216097811,-500.0,0.0005589,120]
[312783088,1706216097833,-500.0,0.0005589,120]
[312783089,1706216097855,-500.0,0.0005589,120]
[312783090,1706216097877,-500.0,0.0005589,120]
[312783091,1706216097904,-500.0,0.0005589,120]
[312783092,1706216097927,-500.0,0.0005589,120]
[312783093,1706216097951,-500.0,0.0005589,120]
[312783094,1706216097976,-149999.0,0.000559,30]
[312783095,1706216097998,-149999.0,0.000559,30]
[312783096,1706216098019,-149999.0,0.000559,30]
[312783097,1706216098041,-99498.18731718,0.000559,30]
[312783098,1706216098066,-9563.47,0.000559,30]
[312783099,1706216098091,-50000.0,0.00056,46]
[312783100,1706216098112,-514.77255699,0.00056,120]
[312783101,1706216098133,-110774.50982442,0.00056,120]
[312783102,1706216098158,-500.0,0.00056012,120]
[312783103,1706216098180,-800.0,0.00056206,120]
[312783104,1706216098201,-200.0,0.00056245,120]
[312783105,1706216098225,-500.0,0.00056317,120]
[312783106,1706216098246,-500.0,0.00056438,120]
[312783107,1706216098268,-500.0,0.00056438,120]
[312783108,1706216098290,-502.49807405,0.00056438,120]
[312783109,1706216098311,-500.0,0.00056438,120]
[312783110,1706216098333,-500.0,0.00056438,120]
[312783111,1706216098356,-515.34,0.00056438,120]
[312783112,1706216098378,-500.0,0.00056438,120]
[312783113,1706216098402,-500.0,0.00056438,120]
[312783114,1706216098427,-893.31,0.00056438,120]
[312783115,1706216098450,-500.0,0.00056438,120]
[312783116,1706216098473,-500.0,0.00056438,120]
[312783117,1706216098515,-500.0,0.00056438,120]
[312783118,1706216098541,-500.0,0.00056438,20]
[312783119,1706216098564,-541.73213501,0.00056438,120]
[312783120,1706216098585,-500.0,0.00056438,120]
[312783121,1706216098609,-500.0,0.00056438,120]
[312783122,1706216098632,-757.69,0.00056438,120]
[312783123,1706216098655,-500.0,0.00056438,120]
[312783124,1706216098678,-500.0,0.00056438,120]
[312783125,1706216098814,-615.73,0.00056438,120]
[312783126,1706216098836,-177.12161533,0.00056438,120]
[312783127,1706216098858,-500.0,0.00056438,120]
[312783128,1706216098881,-500.0,0.00056438,120]
[312783129,1706216098903,-500.0,0.00056438,120]
[312783130,1706216098925,-500.0,0.00056438,120]
[312783131,1706216098949,-500.0,0.00056438,120]
[312783132,1706216098971,-500.0,0.00056438,120]
[312783133,1706216098995,-500.0,0.00056438,120]
[312783134,1706216099018,-500.0,0.00056438,120]
[312783135,1706216099041,-500.0,0.00056438,120]
[312783136,1706216099064,-500.0,0.00056438,120]
[312783137,1706216099087,-500.0,0.00056438,120]
[312783138,1706216099110,-600.0,0.00056438,120]
[312783139,1706216099137,-350.95,0.00056438,120]
[312783140,1706216099160,-500.0,0.00056438,120]
[312783141,1706216099185,-500.0,0.00056438,120]
[312783142,1706216099207,-500.0,0.00056438,120]
[312783143,1706216099231,-500.0,0.00056438,120]
[312783144,1706216099253,-500.0,0.00056438,120]
[312783145,1706216099278,-500.0,0.00056438,120]
[312783146,1706216099301,-500.0,0.00056438,120]
[312783147,1706216099324,-500.0,0.00056438,120]
[312783148,1706216099349,-500.0,0.00056438,120]
[312783149,1706216099376,-500.0,0.00056438,120]
[312783150,1706216099400,-504.97,0.00056438,120]
[312783151,1706216099423,-500.0,0.00056438,120]
[312783152,1706216099444,-500.0,0.00056438,120]
[312783153,1706216099466,-500.0,0.00056438,120]
[312783154,1706216099488,-500.0,0.00056438,120]
[312783155,1706216099509,-500.0,0.00056438,120]
[312783156,1706216099531,-500.0,0.00056438,120]
[312783157,1706216099553,-500.0,0.00056438,120]
[312783158,1706216099575,-500.0,0.00056438,120]
[312783159,1706216099597,-865.45,0.00056438,120]
[312783160,1706216099619,-500.0,0.00056438,120]
[312783161,1706216099640,-150.0,0.00056438,120]
[312783162,1706216099663,-500.0,0.00056438,120]
[312783163,1706216099684,-500.0,0.00056438,120]
[312783164,1706216099706,-500.0,0.00056438,120]
[312783165,1706216099728,-449.00693953,0.00056438,120]
[312783166,1706216099750,-500.0,0.00056438,120]
[312783167,1706216099773,-500.0,0.00056438,120]
[312783168,1706216099797,-500.0,0.00056438,120]
[312783169,1706216099819,-500.0,0.00056438,120]
[312783170,1706216099842,-500.0,0.00056438,120]
[312783171,1706216099866,-500.0,0.00056438,120]
[312783172,1706216099894,-50000.0,0.00056498,60]
[312783173,1706216099921,-50000.0,0.00056498,60]
[312783174,1706216099945,-50000.0,0.00056498,60]
[312783175,1706216099970,-500.0,0.00056621,120]
[312783176,1706216099994,-152.0,0.000569,120]
[312783177,1706216100017,-500.0,0.00056925,120]
[312783178,1706216100041,-500.0,0.00056986,120]
[312783179,1706216100063,-500.0,0.00056986,120]
[312783180,1706216100090,-500.0,0.00056986,120]
[312783181,1706216100112,-500.0,0.00056986,120]
[312783182,1706216100134,-515.34,0.00056986,120]
[312783183,1706216100155,-500.0,0.00056986,120]
[312783184,1706216100177,-500.0,0.00056986,120]
[312783185,1706216100199,-893.31,0.00056986,120]
[312783186,1706216100221,-500.0,0.00056986,120]
[312783187,1706216100243,-500.0,0.00056986,120]
[312783188,1706216100264,-500.0,0.00056986,120]
[312783189,1706216100286,-500.0,0.00056986,20]
[312783190,1706216100308,-500.0,0.00056986,120]
[312783191,1706216100329,-757.69,0.00056986,120]
[312783192,1706216100350,-500.0,0.00056986,120]
[312783193,1706216100372,-500.0,0.00056986,120]
[312783194,1706216100393,-615.73,0.00056986,120]
[312783195,1706216100420,-500.0,0.00056986,120]
[312783196,1706216100441,-526.5,0.00056986,120]
[312783197,1706216100463,-500.0,0.00056986,120]
[312783198,1706216100484,-500.0,0.00056986,120]
[312783199,1706216100506,-500.0,0.00056986,120]
[312783200,1706216100527,-500.0,0.00056986,120]
[312783201,1706216100557,-500.0,0.00056986,120]
[312783202,1706216100588,-500.0,0.00056986,120]
[312783203,1706216100610,-500.0,0.00056986,120]
[312783204,1706216100631,-500.0,0.00056986,120]
[312783205,1706216100654,-600.0,0.00056986,120]
[312783206,1706216100677,-500.0,0.00056986,120]
[312783207,1706216100700,-500.0,0.00056986,120]
[312783208,1706216100721,-500.0,0.00056986,120]
[312783209,1706216100748,-500.0,0.00056986,120]
[312783210,1706216100770,-500.0,0.00056986,120]
[312783211,1706216100792,-500.0,0.00056986,120]
[312783212,1706216100814,-500.0,0.00056986,120]
[312783213,1706216100836,-500.0,0.00056986,120]
[312783214,1706216100857,-500.0,0.00056986,120]
[312783215,1706216100879,-500.0,0.00056986,120]
[312783216,1706216100902,-504.97,0.00056986,120]
[312783217,1706216100924,-500.0,0.00056986,120]
[312783218,1706216100945,-500.0,0.00056986,120]
[312783219,1706216100967,-211.38994387,0.00056986,120]
[312783220,1706216100991,-500.0,0.00056986,120]
[312783221,1706216101012,-500.0,0.00056986,120]
[312783222,1706216101035,-500.0,0.00056986,120]
[312783223,1706216101057,-500.0,0.00056986,120]
[312783224,1706216101080,-500.0,0.00056986,120]
[312783225,1706216101101,-865.45,0.00056986,120]
[312783226,1706216101123,-500.0,0.00056986,120]
[312783227,1706216101145,-150.0,0.00056986,120]
[312783228,1706216101167,-500.0,0.00056986,120]
[312783229,1706216101296,-500.0,0.00056986,120]
[312783230,1706216101318,-500.0,0.00056986,120]
[312783231,1706216101342,-500.0,0.00056986,120]
[312783232,1706216101369,-500.0,0.00056986,120]
[312783233,1706216101391,-500.0,0.00056986,120]
[312783234,1706216101416,-500.0,0.00056986,120]
[312783235,1706216101438,-500.0,0.00056986,120]
[312783236,1706216101462,-500.0,0.00056986,120]
[312783237,1706216101485,-1303.2059352,0.0005699,120]
[312783238,1706216101509,-50000.0,0.00057,47]
[312783239,1706216101533,-27205.63611151,0.00057,120]
[312783240,1706216105387,-150.0,0.00052054,120]
[312783241,1706216105418,-972794.36388849,0.00057,120]
[312783242,1706216105441,-1000000.0,0.00057,120]
[312783243,1706216105467,-1000.0,0.00057,120]
[312783244,1706216105490,-26055.63611151,0.00057,120]
[312783245,1706216110422,-131678.04217966,0.000449,30]
[312783246,1706216110450,-500.0,0.00054794,120]
[312783247,1706216110474,-577.9,0.00055342,120]
[312783248,1706216110501,-427172.86388849,0.00057,120]
[312783249,1706216110528,-374000.0,0.00057,120]
[312783250,1706216110552,-2781.11340767,0.00057198,64]
[312783251,1706216110576,-3000.0,0.000572,80]
[312783252,1706216110599,-3000.0,0.0005721,80]
[312783253,1706216110633,-5504.444242,0.0005722,80]
[312783254,1706216110655,-500.0,0.0005723,120]
[312783255,1706216110677,-2000.0,0.000573,120]
[312783256,1706216110698,-9563.47,0.000573,30]
[312783257,1706216110719,-200.0,0.00057439,120]
[312783258,1706216110740,-226.40552686,0.0005749,42]
[312783259,1706216110763,-500.0,0.00057534,120]
[312783260,1706216110787,-500.0,0.00057534,120]
[312783261,1706216110813,-500.0,0.00057534,120]
[312783262,1706216110838,-515.34,0.00057534,120]
[312783263,1706216110862,-500.0,0.00057534,120]
[312783264,1706216110886,-500.0,0.00057534,120]
[312783265,1706216110910,-893.31,0.00057534,120]
[312783266,1706216110934,-500.0,0.00057534,120]
[312783267,1706216110958,-500.0,0.00057534,120]
[312783268,1706216110983,-500.0,0.00057534,120]
[312783269,1706216111007,-500.0,0.00057534,20]
[312783270,1706216111030,-500.0,0.00057534,120]
[312783271,1706216111054,-757.69,0.00057534,120]
[312783272,1706216111077,-500.0,0.00057534,120]
[312783273,1706216111100,-500.0,0.00057534,120]
[312783274,1706216111123,-615.73,0.00057534,120]
[312783275,1706216111145,-500.0,0.00057534,120]
[312783276,1706216111168,-298.89771748,0.00057534,120]
[312783277,1706216111191,-500.0,0.00057534,120]
[312783278,1706216111214,-500.0,0.00057534,120]
[312783279,1706216111237,-500.0,0.00057534,120]
[312783280,1706216111259,-500.0,0.00057534,120]
[312783281,1706216111283,-500.0,0.00057534,120]
[312783282,1706216111307,-424.82935379,0.00057534,120]
[312783283,1706216111330,-526.14,0.00057534,120]
[312783284,1706216111354,-500.0,0.00057534,120]
[312783285,1706216111376,-500.0,0.00057534,120]
[312783286,1706216111401,-500.0,0.00057534,120]
[312783287,1706216111423,-500.0,0.00057534,120]
[312783288,1706216111446,-500.0,0.00057534,120]
[312783289,1706216111467,-500.0,0.00057534,120]
[312783290,1706216111489,-500.0,0.00057534,120]
[312783291,1706216111512,-500.0,0.00057534,120]
[312783292,1706216111535,-500.0,0.00057534,120]
[312783293,1706216111557,-504.97,0.00057534,120]
[312783294,1706216111580,-500.0,0.00057534,120]
[312783295,1706216111602,-500.0,0.00057534,120]
[312783296,1706216111625,-369.8,0.00057534,120]
[312783297,1706216111647,-500.0,0.00057534,120]
[312783298,1706216111670,-865.45,0.00057534,120]
[312783299,1706216111693,-500.0,0.00057534,120]
[312783300,1706216111715,-5000.0,0.00057534,120]
[312783301,1706216111737,-208.78155564,0.00057534,120]
[312783302,1706216111760,-500.0,0.00057534,120]
[312783303,1706216111782,-500.0,0.00057534,120]
[312783304,1706216111806,-500.0,0.00057534,120]
[312783305,1706216111829,-500.0,0.00057534,120]
[312783306,1706216111851,-500.0,0.00057534,120]
[312783307,1706216111874,-537.85,0.00057534,120]
[312783308,1706216111899,-500.0,0.00057534,120]
[312783309,1706216111921,-500.0,0.00057534,120]
[312783310,1706216111944,-500.0,0.00057534,120]
[312783311,1706216111967,-585.88256995,0.00057534,120]
[312783312,1706216111990,-150.0,0.00057534,120]
[312783313,1706216112012,-2400.0,0.00057534,30]
[312783314,1706216113683,500.0,0.00054794,120]
[312783315,1706216114006,500.0,0.00055342,120]
[312783316,1706216114372,500.0,0.0005589,120]
[312783317,1706216114842,534.10198733,0.00056438,120]
[312783318,1706216116394,500.0,0.00054794,120]
[312783319,1706216116748,500.0,0.00055342,120]
[312783320,1706216117040,577.80774746,0.0005589,120]
[312783321,1706216118490,2018.0,0.000547,117]
[312783322,1706216121299,2965.7404066,0.00056498,15]
[312783323,1706216131483,500.0,0.00054794,120]
[312783324,1706216131771,500.0,0.00054794,120]
[312783325,1706216132350,500.0,0.00055342,120]
[312783326,1706216132408,262.68,0.00055342,120]
[312783327,1706216132794,500.0,0.0005589,120]
[312783328,1706216133382,500.0,0.00056438,120]
[312783329,1706216572465,232.31,0.00019781,2]
[312783330,1706216714975,150.0,0.00021622,2]
[312783331,1706216714996,150.0,0.00021622,2]
[312783332,1706216715016,112.75724785,0.00021622,2]
[312783333,1706216764244,150.0,0.00021621,2]
[312783334,1706216764264,150.0,0.00021621,2]
[312783335,1706216764285,150.0,0.00021621,2]
[312783336,1706216764309,75.70539145,0.00021621,2]
[312783337,1706216778781,-150.0,0.00021622,2]
[312783338,1706216778934,-5.0,0.00021622,2]
[312783339,1706216778955,-145.0,0.00021622,2]
[312783340,1706216778992,-152.0073607,0.00021622,2]
[312783341,1706216833107,-2.9926393,0.00021622,2]
[312783342,1706216833131,-150.0,0.00021622,2]
[312783343,1706216833153,-1703.83068912,0.00021623,2]
[312783344,1706216912063,177.01,0.00021571,2]
[312783345,1706216966304,150.0,0.00021478,2]
[312783346,1706216966324,150.0,0.00021478,2]
[312783347,1706216966344,150.0,0.00021478,2]
[312783348,1706216966364,150.0,0.00021478,2]
[312783349,1706216966384,150.0,0.00021478,2]
[312783350,1706216966402,150.0,0.00021478,2]
[312783351,1706216966421,150.0,0.00021478,2]
[312783352,1706216966441,150.0,0.00021478,2]
[312783353,1706216966460,150.0,0.00021478,2]